fUST/lending_fUST_20240927
["ID","MTS","AMOUNT","RATE_DAILY","PERIOD"]
[339261559,1727417445008,-526.0,0.00019619,2]
[339261560,1727417445017,-526.0,0.00019619,2]
[339261561,1727417445026,-526.0,0.00019619,2]
[339261562,1727417445035,-526.0,0.00019619,2]
[339261563,1727417445045,-526.0,0.00019619,2]
[339261564,1727417445054,-526.0,0.00019619,2]
[339261565,1727417445064,-526.0,0.00019619,2]
[339261566,1727417445073,-153.0,0.0001962,2]
[339261567,1727417445082,-153.0,0.0001962,2]
[339261568,1727417445092,-153.0,0.0001962,2]
[339261569,1727417445101,-153.0,0.0001962,2]
[339261570,1727417445110,-526.0,0.00019622,2]
[339261571,1727417445120,-526.0,0.00019622,2]
[339261572,1727417445129,-526.0,0.00019622,2]
[339261573,1727417445138,-526.0,0.00019622,2]
[339261574,1727417445148,-526.0,0.00019622,2]
[339261575,1727417445158,-526.0,0.00019622,2]
[339261576,1727417445166,-526.0,0.00019622,2]
[339261577,1727417445175,-526.0,0.00019622,2]
[339261578,1727417445184,-526.0,0.00019622,2]
[339261579,1727417445194,-526.0,0.00019622,2]
[339261580,1727417445203,-526.0,0.00019622,2]
[339261581,1727417445212,-526.0,0.00019622,2]
[339261582,1727417445221,-526.0,0.00019622,2]
[339261583,1727417445230,-526.0,0.00019622,2]
[339261584,1727417445239,-153.0,0.00019622,2]
[339261585,1727417445249,-153.0,0.00019622,2]
[339261586,1727417445258,-153.0,0.00019622,2]
[339261587,1727417445267,-153.0,0.00019622,2]
[339261588,1727417445277,-526.0,0.00019624,2]
[339261589,1727417445286,-526.0,0.00019624,2]
[339261590,1727417445295,-526.0,0.00019624,2]
[339261591,1727417445304,-526.0,0.00019624,2]
[339261592,1727417445313,-526.0,0.00019624,2]
[339261593,1727417445322,-526.0,0.00019624,2]
[339261594,1727417445331,-526.0,0.00019624,2]
[339261595,1727417445441,-526.0,0.00019624,2]
[339261596,1727417445451,-526.0,0.00019624,2]
[339261597,1727417445460,-526.0,0.00019624,2]
[339261598,1727417445470,-526.0,0.00019624,2]
[339261599,1727417445480,-526.0,0.00019624,2]
[339261600,1727417445492,-526.0,0.00019624,2]
[339261601,1727417445501,-526.0,0.00019624,2]
[339261602,1727417445509,-246.484232,0.00019624,2]
[339261603,1727417445518,-246.484232,0.00019624,2]
[339261604,1727417445527,-151.0,0.00019624,2]
[339261605,1727417445536,-219.209114,0.00019624,2]
[339261606,1727417445545,-151.0,0.00019624,2]
[339261607,1727417445556,-151.0,0.00019624,2]
[339261608,1727417445567,-151.0,0.00019624,2]
[339261609,1727417445577,-151.0,0.00019624,2]
[339261610,1727417445586,-153.0,0.00019624,2]
[339261611,1727417445595,-153.0,0.00019624,2]
[339261612,1727417445604,-153.0,0.00019624,2]
[339261613,1727417445616,-153.0,0.00019624,2]
[339261614,1727417445625,-151.0,0.00019627,2]
[339261615,1727417445635,-151.0,0.00019627,2]
[339261616,1727417445644,-151.0,0.00019627,2]
[339261617,1727417445655,-506.959578,0.00019627,2]
[339261618,1727417445664,-506.959578,0.00019627,2]
[339261619,1727417445673,-151.0,0.00019627,2]
[339261620,1727417445682,-151.0,0.00019627,2]
[339261621,1727417445691,-151.0,0.00019627,2]
[339261622,1727417445701,-206.345677,0.00019627,2]
[339261623,1727417445710,-206.345677,0.00019627,2]
[339261624,1727417445721,-187.016246,0.00019627,2]
[339261625,1727417445730,-187.016246,0.00019627,2]
[339261626,1727417445740,-166.654394,0.00019627,2]
[339261627,1727417445749,-166.654394,0.00019627,2]
[339261628,1727417445758,-151.0,0.00019628,2]
[339261629,1727417445767,-151.0,0.00019628,2]
[339261630,1727417445776,-1024.72903075,0.00019636,2]
[339261632,1727417445785,-151.0,0.00019638,2]
[339261633,1727417445794,-151.0,0.00019638,2]
[339261634,1727417445803,-151.0,0.00019638,2]
[339261635,1727417445812,-236.521968,0.00019638,2]
[339261636,1727417445821,-236.521968,0.00019638,2]
[339261637,1727417445830,-299.422142,0.0001964,2]
[339261638,1727417445841,-151.0,0.0001964,2]
[339261639,1727417445850,-151.0,0.0001964,2]
[339261640,1727417445859,-151.0,0.0001964,2]
[339261641,1727417445868,-151.0,0.0001964,2]
[339261642,1727417445877,-274.919794,0.0001964,2]
[339261643,1727417445886,-418.292246,0.0001964,2]
[339261644,1727417445895,-418.292246,0.0001964,2]
[339261645,1727417445904,-151.0,0.00019645,2]
[339261646,1727417445914,-151.0,0.00019645,2]
[339261647,1727417445923,-285.055001,0.00019645,2]
[339261648,1727417445931,-285.055001,0.00019645,2]
[339261649,1727417445941,-11531.83280628,0.0001968,2]
[339261650,1727417445950,-151.0,0.0001968,2]
[339261651,1727417445959,-669.57598092,0.00019685,3]
[339261652,1727417445968,-669.57598092,0.00019685,3]
[339261653,1727417445978,-151.0,0.00019687,2]
[339261654,1727417445987,-151.0,0.00019687,2]
[339261655,1727417445996,-210.011963,0.00019695,2]
[339261656,1727417446005,-151.0,0.00019695,2]
[339261657,1727417446014,-151.0,0.00019695,2]
[339261658,1727417446023,-506.959578,0.00019695,2]
[339261659,1727417446033,-506.959578,0.00019695,2]
[339261660,1727417446042,-151.0,0.00019695,2]
[339261661,1727417446051,-151.0,0.00019695,2]
[339261662,1727417446061,-151.0,0.00019695,2]
[339261663,1727417446070,-206.345677,0.00019695,2]
[339261664,1727417446079,-187.016246,0.00019695,2]
[339261665,1727417446088,-206.345677,0.00019695,2]
[339261666,1727417446098,-187.016246,0.00019695,2]
[339261667,1727417446107,-166.654394,0.00019695,2]
[339261668,1727417446116,-166.654394,0.00019695,2]
[339261669,1727417446126,-246.484232,0.00019695,2]
[339261670,1727417446135,-246.484232,0.00019695,2]
[339261671,1727417446144,-151.0,0.00019695,2]
[339261672,1727417446153,-151.0,0.00019695,2]
[339261673,1727417446163,-178.200601,0.00019695,2]
[339261674,1727417446173,-189.954836,0.00019695,2]
[339261675,1727417446183,-151.0,0.00019695,2]
[339261676,1727417446192,-435.00958,0.000197,2]
[339261677,1727417446201,-435.00958,0.000197,2]
[339261678,1727417446210,-151.0,0.00019705,2]
[339261679,1727417446220,-151.0,0.00019705,2]
[339261680,1727417446229,-151.0,0.00019705,2]
[339261681,1727417446238,-151.0,0.00019705,2]
[339261682,1727417446247,-151.0,0.00019705,2]
[339261683,1727417446257,-151.0,0.00019705,2]
[339261684,1727417446267,-285.055001,0.00019705,2]
[339261685,1727417446276,-285.055001,0.00019705,2]
[339261686,1727417446286,-152.187776,0.00019705,2]
[339261687,1727417446295,-151.0,0.00019705,2]
[339261688,1727417446305,-151.0,0.00019705,2]
[339261689,1727417446314,-151.0,0.00019705,2]
[339261690,1727417446324,-151.0,0.00019705,2]
[339261691,1727417446334,-236.521968,0.00019705,2]
[339261692,1727417446346,-236.521968,0.00019705,2]
[339261693,1727417446356,-418.292246,0.00019705,2]
[339261694,1727417446365,-418.292246,0.00019705,2]
[339261695,1727417446374,-151.0,0.00019716,2]
[339261696,1727417446383,-151.0,0.00019716,2]
[339261697,1727417446393,-669.57598092,0.00019716,3]
[339261698,1727417446402,-246.09838838,0.00019726,2]
[339261699,1727417446413,-151.0,0.00019726,2]
[339261700,1727417446423,-151.0,0.00019726,2]
[339261701,1727417446434,-595.25,0.00019726,2]
[339261702,1727417446443,-1131.86,0.00019726,2]
[339261703,1727417446453,-500.0,0.00019726,2]
[339261704,1727417446462,-1310.03,0.00019726,2]
[339261705,1727417446471,-584.7,0.00019726,2]
[339261706,1727417446480,-1062.28,0.00019726,2]
[339261707,1727417446492,-500.0,0.00019726,2]
[339261708,1727417446501,-500.0,0.00019726,2]
[339261709,1727417446510,-344.71093875,0.00019726,2]
[339261710,1727417446519,-377.7251503,0.00019726,2]
[339261711,1727417446529,-1000.0,0.00019726,2]
[339261712,1727417446538,-500.0,0.00019726,2]
[339261713,1727417446548,-500.0,0.00019726,2]
[339261714,1727417446558,-2131.71,0.00019726,2]
[339261715,1727417446568,-500.0,0.00019726,2]
[339261716,1727417446577,-338.33844084,0.00019726,2]
[339261717,1727417446586,-204.64,0.00019726,2]
[339261718,1727417446596,-512.37,0.00019726,2]
[339261719,1727417446605,-1724.24,0.00019726,2]
[339261720,1727417446614,-500.0,0.00019726,2]
[339261721,1727417446623,-476.74367815,0.00019726,2]
[339261722,1727417446633,-151.0,0.00019726,2]
[339261723,1727417446642,-248.430089,0.00019726,2]
[339261724,1727417446652,-500.0,0.00019726,2]
[339261725,1727417446663,-626.93950403,0.00019726,2]
[339261726,1727417446672,-506.959578,0.00019726,2]
[339261727,1727417446682,-506.959578,0.00019726,2]
[339261728,1727417446691,-3649.69,0.00019726,2]
[339261729,1727417446700,-151.0,0.00019726,2]
[339261730,1727417446710,-206.345677,0.00019726,2]
[339261731,1727417446720,-206.345677,0.00019726,2]
[339261732,1727417446729,-187.016246,0.00019726,2]
[339261733,1727417446739,-187.016246,0.00019726,2]
[339261734,1727417446749,-166.654394,0.00019726,2]
[339261735,1727417446758,-166.654394,0.00019726,2]
[339261736,1727417446768,-246.52,0.00019726,2]
[339261737,1727417446777,-500.0,0.00019726,2]
[339261738,1727417446787,-246.484232,0.00019726,2]
[339261739,1727417446796,-246.484232,0.00019726,2]
[339261740,1727417446805,-151.0,0.00019726,2]
[339261741,1727417446815,-151.0,0.00019726,2]
[339261742,1727417446823,-2096.99,0.00019726,2]
[339261743,1727417446833,-500.0,0.00019726,2]
[339261744,1727417446842,-602.6383402,0.00019726,2]
[339261745,1727417446851,-500.0,0.00019726,2]
[339261746,1727417446860,-500.0,0.00019726,2]
[339261747,1727417446870,-577.8,0.00019726,2]
[339261748,1727417446879,-500.0,0.00019726,2]
[339261749,1727417446889,-500.0,0.00019726,2]
[339261750,1727417446898,-746.72,0.00019726,2]
[339261751,1727417446908,-5000.0,0.00019726,2]
[339261752,1727417446918,-151.0,0.00019726,2]
[339261753,1727417446927,-579.09297161,0.00019726,2]
[339261754,1727417446936,-500.0,0.00019726,2]
[339261755,1727417446946,-500.0,0.00019726,2]
[339261756,1727417446958,-19218.49,0.00019726,2]
[339261757,1727417446968,-630.12290026,0.00019726,2]
[339261758,1727417446978,-150.112233,0.000198,2]
[339261759,1727417446989,-150.204243,0.000198,2]
[339261760,1727417446999,-669.57598092,0.00019859,3]
[339261761,1727417447009,-3226.36023378,0.00019869,2]
[339261762,1727417447021,-150.01,0.00019869,2]
[339261763,1727417447032,-435.00958,0.00019869,2]
[339261764,1727417447042,-435.00958,0.00019869,2]
[339261765,1727417447051,-152.135856,0.00019869,2]
[339261766,1727417447061,-151.0,0.00019869,2]
[339261767,1727417447071,-151.0,0.00019869,2]
[339261768,1727417447080,-238.582917,0.00019869,2]
[339261769,1727417447091,-238.582917,0.00019869,2]
[339261770,1727417447100,-151.0,0.00019869,2]
[339261771,1727417447110,-151.0,0.0001987,2]
[339261772,1727417447119,-669.57598092,0.0001987,3]
[339261773,1727417447128,-285.055001,0.0001988,2]
[339261774,1727417447137,-285.055001,0.0001988,2]
[339261775,1727417447147,-151.0,0.0001988,2]
[339261776,1727417447156,-151.0,0.0001988,2]
[339261777,1727417447165,-197.006377,0.0001988,2]
[339261778,1727417447174,-151.0,0.0001988,2]
[339261779,1727417447183,-236.521968,0.0001988,2]
[339261780,1727417447192,-236.521968,0.0001988,2]
[339261781,1727417447201,-418.292246,0.0001988,2]
[339261782,1727417447210,-418.292246,0.0001988,2]
[339261783,1727417447219,-246.484232,0.0001988,2]
[339261784,1727417447228,-246.484232,0.0001988,2]
[339261785,1727417447237,-151.0,0.0001988,2]
[339261786,1727417447246,-151.0,0.0001988,2]
[339261787,1727417447255,-273.221092,0.0001988,2]
[339261788,1727417447265,-231.004,0.0001988,2]
[339261789,1727417447276,-669.66672762,0.00019894,2]
[339261790,1727417447285,-151.0,0.0001995,2]
[339261791,1727417447294,-187.016246,0.0001995,2]
[339261792,1727417447303,-187.016246,0.0001995,2]
[339261793,1727417447313,-166.654394,0.0001995,2]
[339261794,1727417447322,-166.654394,0.0001995,2]
[339261795,1727417447332,-151.0,0.0001996,2]
[339261796,1727417447345,-151.0,0.0001996,2]
[339261797,1727417447354,-158.423294,0.0001996,2]
[339261798,1727417447363,-151.0,0.0001996,2]
[339261799,1727417447371,-151.0,0.0001996,2]
[339261800,1727417447380,-151.0,0.0001996,2]
[339261801,1727417447390,-151.0,0.0001996,2]
[339261802,1727417447399,-506.959578,0.0001996,2]
[339261803,1727417447408,-506.959578,0.0001996,2]
[339261804,1727417447417,-206.345677,0.00019969,2]
[339261805,1727417447427,-206.345677,0.00019969,2]
[339261806,1727417447436,-151.0,0.0001997,2]
[339261807,1727417447445,-669.57598092,0.0001997,3]
[339261808,1727417447454,-500.0,0.00019973,2]
[339261809,1727417447463,-500.93983829,0.00019973,2]
[339261810,1727417447473,-507.48995978,0.00019973,2]
[339261811,1727417447483,-500.0,0.00019973,2]
[339261812,1727417447494,-537.79400279,0.00019973,2]
[339261813,1727417447504,-500.0,0.00019973,2]
[339261814,1727417447514,-500.0,0.00019973,2]
[339261815,1727417447523,-174.53906605,0.00019973,2]
[339261816,1727417447533,-500.0,0.00019973,2]
[339261817,1727417447542,-500.0,0.00019973,2]
[339261818,1727417447552,-500.0,0.00019973,2]
[339261819,1727417447562,-374.02611498,0.00019973,2]
[339261820,1727417447572,-285.055001,0.00019979,2]
[339261821,1727417447582,-285.055001,0.00019979,2]
[339261822,1727417447598,-151.0,0.00019979,2]
[339261823,1727417447608,-151.0,0.00019979,2]
[339261824,1727417447620,-284.818167,0.00019979,2]
[339261825,1727417447630,-236.521968,0.00019979,2]
[339261826,1727417447640,-236.521968,0.00019979,2]
[339261827,1727417447649,-418.292246,0.00019979,2]
[339261828,1727417447659,-418.292246,0.00019979,2]
[339261829,1727417447669,-151.0,0.00019979,2]
[339261830,1727417447679,-169.47869223,0.0001998,2]
[339261831,1727417447688,-151.0,0.0001998,2]
[339261832,1727417447698,-151.84986,0.0001998,2]
[339261833,1727417447708,-151.0,0.0001998,2]
[339261834,1727417447718,-153.99012,0.0001998,2]
[339261835,1727417447727,-151.0,0.0001998,2]
[339261836,1727417447737,-153.936186,0.0001998,2]
[339261837,1727417447747,-151.0,0.0001998,2]
[339261838,1727417447756,-151.0,0.0001998,2]
[339261839,1727417447766,-151.0,0.0001998,2]
[339261840,1727417447776,-151.0,0.0001998,2]
[339261841,1727417447786,-279.361945,0.0001998,2]
[339261842,1727417447796,-151.0,0.0001998,2]
[339261843,1727417447806,-151.0,0.0001998,2]
[339261844,1727417447815,-151.0,0.0001998,2]
[339261845,1727417447825,-238.582917,0.0001998,2]
[339261846,1727417447834,-238.582917,0.0001998,2]
[339261847,1727417447851,-151.0,0.0001998,2]
[339261848,1727417447860,-151.0,0.0001998,2]
[339261849,1727417447869,-151.0,0.0001998,2]
[339261850,1727417447880,-151.0,0.0001998,2]
[339261851,1727417447889,-151.0,0.0001998,2]
[339261852,1727417447899,-164.300162,0.0001998,2]
[339261853,1727417447908,-285.055001,0.0001998,2]
[339261854,1727417447917,-285.055001,0.0001998,2]
[339261855,1727417447928,-151.0,0.0001998,2]
[339261856,1727417447937,-151.0,0.0001998,2]
[339261857,1727417447947,-1000.0,0.0001998,2]
[339261858,1727417447957,-1000.0,0.0001998,2]
[339261859,1727417447966,-1000.0,0.0001998,2]
[339261860,1727417447976,-1000.0,0.0001998,2]
[339261861,1727417447985,-1000.0,0.0001998,2]
[339261862,1727417447995,-1000.0,0.0001998,2]
[339261863,1727417448105,-1000.0,0.0001998,2]
[339261864,1727417448114,-1000.0,0.0001998,2]
[339261865,1727417448124,-1000.0,0.0001998,2]
[339261866,1727417448133,-1000.0,0.0001998,2]
[339261867,1727417448143,-1000.0,0.0001998,2]
[339261868,1727417448152,-1000.0,0.0001998,2]
[339261869,1727417448161,-1000.0,0.0001998,2]
[339261870,1727417448171,-1000.0,0.0001998,2]
[339261871,1727417448181,-1000.0,0.0001998,2]
[339261872,1727417448191,-1000.0,0.0001998,2]
[339261873,1727417448200,-1000.0,0.0001998,2]
[339261874,1727417448209,-1000.0,0.0001998,2]
[339261875,1727417448219,-1000.0,0.0001998,2]
[339261876,1727417448229,-886.8164385,0.0001998,2]
[339261877,1727417448238,-236.521968,0.0001998,2]
[339261878,1727417448248,-236.521968,0.0001998,2]
[339261879,1727417448257,-418.292246,0.0001998,2]
[339261880,1727417448267,-418.292246,0.0001998,2]
[339261881,1727417448278,-669.57598092,0.0001998,3]
[339261882,1727417448287,-7198.06123176,0.0001999,2]
[339261896,1727418236823,950.0,0.00021,60]
[339261897,1727418333110,-1823.72218858,0.000159,2]
[339261898,1727418347231,-12.62173509,0.000159,2]
[339261899,1727418347255,-150.0,0.00016,2]
[339261900,1727418347277,-193.17439119,0.0001711,2]
[339261902,1727418435778,-132.48018119,0.0001711,2]
[339261903,1727418435800,-117.01481619,0.0001721,2]
[339261904,1727418436476,-58.02785281,0.0001721,2]
[339261905,1727418436497,-343.1112258,0.00017228,2]
[339261906,1727418437191,-155.3089581,0.00017228,2]
[339261907,1727418437213,-133.61485957,0.00017424,2]
[339261910,1727418546418,-33.05180643,0.00017424,2]
[339261911,1727418546441,-196.740455,0.00017602,2]
[339261912,1727418546464,-173.495683,0.00017709,2]
[339261913,1727418546487,-173.495683,0.00017757,2]
[339261914,1727418546510,-173.495683,0.00017806,2]
[339261915,1727418546533,-173.495683,0.00017855,2]
[339261920,1727418561944,-173.495683,0.00017903,2]
[339261921,1727418561967,-41.94889506,0.00017952,2]
[339261922,1727418569891,166.666666,0.00017204,2]
[339261925,1727418593506,226.369277,0.00017496,2]
[339261952,1727418632450,-131.54678794,0.00017952,2]
[339261954,1727418632460,-173.495683,0.00018,2]
[339261956,1727418632470,-157.42149982,0.00018049,2]
[339261958,1727418632482,-16.07418318,0.00018049,2]
[339261960,1727418632492,-173.495683,0.00018097,2]
[339261962,1727418632501,-173.495683,0.00018146,2]
[339261964,1727418632511,-173.495683,0.00018195,2]
[339261966,1727418632520,-173.495683,0.00018243,2]
[339261968,1727418632530,-173.495683,0.00018292,2]
[339261970,1727418632539,-46.06362596,0.0001834,2]
[339261972,1727418632551,-127.43205704,0.0001834,2]
[339261975,1727418632561,-173.495683,0.00018389,2]
[339261977,1727418632571,-173.495683,0.00018438,2]
[339261979,1727418632581,-173.495683,0.00018486,2]
[339261981,1727418632590,-173.495683,0.00018535,2]
[339261983,1727418632600,-173.495683,0.00018583,2]
[339261985,1727418632610,-173.495683,0.00018632,2]
[339261987,1727418632619,-501.29092363,0.00018651,2]
[339261989,1727418632631,-4818.9463836,0.00018651,2]
[339261991,1727418632641,-360.0,0.000189,2]
[339261993,1727418632650,-150.0,0.00018925,2]
[339261995,1727418632661,-5320.23730723,0.00018929,2]
[339261997,1727418632670,-1335.05282564,0.00018967,2]
[339261999,1727418632680,-300.0,0.00018994,2]
[339262001,1727418632689,-300.0,0.00018994,2]
[339262003,1727418632698,-500.0,0.00018995,2]
[339262005,1727418632707,-2.76348353,0.00018995,2]
[339262165,1727418638843,-500.0,0.00018994,2]
[339262167,1727418638854,-500.0,0.00018994,2]
[339262170,1727418638867,-50.82,0.00018994,2]
[339262172,1727418638882,-449.18,0.00018994,2]
[339262174,1727418638891,-500.0,0.00018994,2]
[339262176,1727418638902,-494.27821492,0.00018994,2]
[339262179,1727418638915,-500.0,0.00018994,2]
[339262181,1727418638924,-500.0,0.00018994,2]
[339262183,1727418638934,-500.0,0.00018994,2]
[339262185,1727418638945,-500.0,0.00018994,2]
[339262187,1727418638957,-500.0,0.00018994,2]
[339262189,1727418638966,-500.0,0.00018994,2]
[339262191,1727418638976,-500.0,0.00018994,2]
[339262193,1727418638986,-500.0,0.00018994,2]
[339262195,1727418638996,-500.0,0.00018994,2]
[339262197,1727418639006,-500.0,0.00018994,2]
[339262199,1727418639015,-500.0,0.00018994,2]
[339262201,1727418639026,-500.0,0.00018994,2]
[339262203,1727418639035,-500.0,0.00018994,2]
[339262205,1727418639046,-59.14308587,0.00018994,2]
[339262219,1727418639151,-440.85691413,0.00018994,2]
[339262221,1727418639160,-500.0,0.00018994,2]
[339262223,1727418639170,-500.0,0.00018994,2]
[339262225,1727418639179,-500.0,0.00018994,2]
[339262227,1727418639189,-500.0,0.00018994,2]
[339262229,1727418639199,-500.0,0.00018994,2]
[339262231,1727418639210,-500.0,0.00018994,2]
[339262233,1727418639220,-500.0,0.00018994,2]
[339262235,1727418639229,-500.0,0.00018994,2]
[339262237,1727418639240,-500.0,0.00018994,2]
[339262239,1727418639251,-500.0,0.00018994,2]
[339262241,1727418639260,-500.0,0.00018994,2]
[339262243,1727418639273,-500.0,0.00018994,2]
[339262245,1727418639282,-500.0,0.00018994,2]
[339262247,1727418639292,-500.0,0.00018994,2]
[339262249,1727418639302,-500.0,0.00018994,2]
[339262251,1727418639313,-500.0,0.00018994,2]
[339262254,1727418639323,-500.0,0.00018994,2]
[339262256,1727418639335,-500.0,0.00018994,2]
[339262258,1727418639344,-500.0,0.00018994,2]
[339262260,1727418639354,-500.0,0.00018994,2]
[339262262,1727418639365,-500.0,0.00018994,2]
[339262264,1727418639375,-650.24403667,0.00018994,2]
[339262266,1727418639384,-500.0,0.00018994,2]
[339262268,1727418639393,-500.0,0.00018994,2]
[339262270,1727418639403,-500.0,0.00018994,2]
[339262272,1727418639412,-500.0,0.00018994,2]
[339262274,1727418639421,-6865.3300616,0.00019,3]
[339262278,1727418639454,-177.53308372,0.00019,3]
[339262282,1727418639482,-10555.28582214,0.00019,3]
[339262284,1727418639491,-1947.26086,0.00019,2]
[339262286,1727418639501,-161.5625092,0.00019067,2]
[339262288,1727418639511,-457.38145026,0.00019068,2]
[339262290,1727418639521,-153.0,0.0001913,2]
[339262292,1727418639531,-161.56250918,0.00019138,2]
[339262294,1727418639540,-475.26346113,0.00019153,2]
[339262296,1727418639550,-326.54436514,0.00019167,2]
[339262298,1727418639559,-239.61725994,0.00019167,2]
[339262300,1727418639568,-500.0,0.00019167,2]
[339262302,1727418639578,-242.50801509,0.00019167,2]
[339262319,1727418639757,-500.0,0.00019167,2]
[339262320,1727418639767,-28704.35441444,0.00019168,3]
[339262321,1727418639783,-62063.54105416,0.00019168,3]
[339262323,1727418639794,-38922.27470726,0.00019168,3]
[339262343,1727418640593,-31617.91247884,0.00019168,3]
[339262344,1727418640603,-500.82937443,0.00019173,2]
[339262345,1727418640620,-500.0,0.00019173,2]
[339262346,1727418640633,-500.0,0.00019173,2]
[339262347,1727418640643,-500.0,0.00019173,2]
[339262348,1727418640655,-652.07533208,0.00019177,2]
[339262349,1727418640665,-450.80446651,0.00019178,2]
[339262350,1727418640685,-500.0,0.00019178,2]
[339262351,1727418640695,-500.0,0.00019178,2]
[339262352,1727418640704,-509.92699727,0.00019178,2]
[339262353,1727418640714,-500.0,0.00019178,2]
[339262354,1727418640723,-527.50529191,0.00019178,2]
[339262355,1727418640733,-500.0,0.00019178,2]
[339262356,1727418640743,-286.42954028,0.00019178,2]
[339262357,1727418640753,-500.0,0.00019178,2]
[339262358,1727418640762,-500.0,0.00019178,2]
[339262359,1727418640772,-200.0,0.00019178,2]
[339262360,1727418640783,-506.95147039,0.00019178,2]
[339262361,1727418640794,-501.39593937,0.00019178,2]
[339262362,1727418640803,-500.0,0.00019178,2]
[339262363,1727418640812,-504.58704169,0.00019178,2]
[339262364,1727418640822,-500.0,0.00019178,2]
[339262365,1727418640833,-500.0,0.00019178,2]
[339262366,1727418640845,-500.0,0.00019178,2]
[339262367,1727418640856,-500.0,0.00019178,2]
[339262368,1727418640870,-500.0,0.00019178,2]
[339262369,1727418640879,-503.06558109,0.00019178,2]
[339262370,1727418640889,-500.0,0.00019178,2]
[339262371,1727418640899,-500.0,0.00019178,2]
[339262372,1727418640908,-500.0,0.00019178,2]
[339262373,1727418640919,-504.57965744,0.00019178,2]
[339262374,1727418640929,-500.0,0.00019178,2]
[339262375,1727418640939,-500.0,0.00019178,2]
[339262376,1727418640948,-500.0,0.00019178,2]
[339262377,1727418640958,-501.88949167,0.00019178,2]
[339262378,1727418640968,-500.51837239,0.00019178,2]
[339262379,1727418640978,-500.0,0.00019178,2]
[339262380,1727418640988,-500.0,0.00019178,2]
[339262381,1727418640997,-500.0,0.00019178,2]
[339262382,1727418641007,-328.18284378,0.00019178,2]
[339262383,1727418641016,-500.0,0.00019178,2]
[339262384,1727418641026,-500.0,0.00019178,2]
[339262385,1727418641036,-588.54975964,0.00019178,2]
[339262386,1727418641045,-531.63434114,0.00019178,2]
[339262387,1727418641055,-504.89945901,0.00019178,2]
[339262388,1727418641064,-511.98867425,0.00019178,2]
[339262389,1727418641074,-532.2860356,0.00019178,2]
[339262390,1727418641084,-505.49420138,0.00019178,2]
[339262391,1727418641094,-603.61750877,0.00019178,2]
[339262392,1727418641104,-504.13947938,0.00019178,2]
[339262393,1727418641116,-500.0,0.00019178,2]
[339262394,1727418641125,-517.43819269,0.00019178,2]
[339262395,1727418641135,-500.0,0.00019178,2]
[339262396,1727418641144,-500.0,0.00019178,2]
[339262397,1727418641153,-515.77743723,0.00019178,2]
[339262398,1727418641162,-500.0,0.00019178,2]
[339262399,1727418641171,-1508.71,0.00019178,2]
[339262400,1727418641181,-500.0,0.00019178,2]
[339262401,1727418641191,-504.39762484,0.00019178,2]
[339262402,1727418641200,-500.0,0.00019178,2]
[339262403,1727418641210,-500.0,0.00019178,2]
[339262404,1727418641219,-484.81701463,0.00019178,2]
[339262405,1727418641228,-500.0,0.00019178,2]
[339262406,1727418641237,-508.20465973,0.00019178,2]
[339262407,1727418641247,-352.01920471,0.00019178,2]